fUST/lending_fUST_20260329
["ID","MTS","AMOUNT","RATE_DAILY","PERIOD"]
[418997437,1774727444028,-500.0,0.00024525,2]
[418997439,1774727444039,-500.0,0.00024525,2]
[418997441,1774727444049,-500.0,0.00024525,2]
[418997443,1774727444058,-500.0,0.00024525,2]
[418997445,1774727444068,-192.67883395,0.00024525,2]
[418997447,1774727444077,-500.0,0.00024525,2]
[418997449,1774727444086,-500.0,0.00024525,2]
[418997451,1774727444095,-500.0,0.00024525,2]
[418997453,1774727444104,-500.0,0.00024525,2]
[418997455,1774727444115,-500.0,0.00024525,2]
[418997457,1774727444125,-500.0,0.00024525,2]
[418997459,1774727444134,-500.0,0.00024525,2]
[418997461,1774727444144,-500.0,0.00024525,2]
[418997463,1774727444153,-303.72096287,0.00024525,2]
[418997465,1774727444163,-500.0,0.00024525,2]
[418997467,1774727444173,-500.0,0.00024525,2]
[418997470,1774727444183,-500.0,0.00024525,2]
[418997471,1774727444192,-500.0,0.00024525,2]
[418997473,1774727444202,-500.0,0.00024525,2]
[418997475,1774727444211,-500.0,0.00024525,2]
[418997477,1774727444221,-500.0,0.00024525,2]
[418997479,1774727444230,-500.0,0.00024525,2]
[418997481,1774727444239,-500.0,0.00024525,2]
[418997483,1774727444249,-500.0,0.00024525,2]
[418997485,1774727444260,-500.0,0.00024525,2]
[418997487,1774727444269,-500.0,0.00024525,2]
[418997489,1774727444279,-500.0,0.00024525,2]
[418997491,1774727444288,-500.0,0.00024525,2]
[418997493,1774727444298,-500.0,0.00024525,2]
[418997495,1774727444307,-500.0,0.00024525,2]
[418997497,1774727444320,-500.0,0.00024525,2]
[418997499,1774727444331,-500.0,0.00024525,2]
[418997501,1774727444341,-500.0,0.00024526,2]
[418997503,1774727444352,-390.97850807,0.00024573,2]
[418997506,1774727444365,-109.02149193,0.00024573,2]
[418997508,1774727444374,-236.34062332,0.00024573,2]
[418997510,1774727444385,-500.0,0.00024573,2]
[418997511,1774727444395,-431.83675393,0.00024657,9]
[418997608,1774727446226,-68.16324607,0.00024657,9]
[418997610,1774727446236,-1756.0,0.00024657,10]
[418997612,1774727446245,-500.0,0.00024723,9]
[418997614,1774727446255,-1190.20550518,0.00024724,2]
[418997639,1774727446491,-804.37666422,0.00024724,2]
[418997641,1774727446500,-500.0,0.00024727,7]
[418997643,1774727446510,-311.43426929,0.00024729,2]
[418997645,1774727446520,-1000.0,0.00024729,2]
[418997647,1774727446529,-500.0,0.000248,2]
[418997649,1774727446538,-151.0,0.000249,2]
[418997651,1774727446548,-1000.0,0.00024931,7]
[418997653,1774727446557,-500.0,0.00024931,9]
[418997655,1774727446566,-500.0,0.00024997,9]
[418997657,1774727446575,-355.5629337,0.00025,2]
[418997659,1774727446585,-500.0,0.00025001,7]
[418997661,1774727446594,-500.0,0.00025074,2]
[418997663,1774727446603,-655.30192424,0.00025121,2]
[418997665,1774727446612,-500.0,0.00025205,9]
[418997667,1774727446622,-500.0,0.00025271,9]
[418997669,1774727446631,-500.0,0.00025275,7]
[418997671,1774727446641,-355.5629337,0.000253,2]
[418997673,1774727446651,-500.0,0.00025348,2]
[418997674,1774727446660,-600.0,0.00025427,10]
[418997677,1774727446669,-500.0,0.00025433,2]
[418997679,1774727446679,-545.81817898,0.00025433,2]
[418997680,1774727446688,-163.34541441,0.00025433,2]
[418997682,1774727446697,-9985.01050896,0.00025434,2]
[418997685,1774727446713,-1079.24108649,0.00025434,2]
[418997735,1774727649774,5000.0,5e-05,10]
[418997736,1774727672057,5000.0,5e-05,10]
[418997758,1774728445643,500.0,1.984e-05,2]
[418997833,1774728634216,-295.30926659,2.616e-05,2]
[418997834,1774728634228,-519.24931224,2.616e-05,2]
[418997835,1774728634239,-300.58662455,2.616e-05,2]
[418997836,1774728634251,-3884.85479662,2.616e-05,2]
[418997837,1774728634261,-500.0,2.642e-05,2]
[418997838,1774728634272,-500.0,2.81e-05,2]
[418997839,1774728634282,-500.0,5.7e-05,2]
[418997840,1774728634293,-111.03929849,6.999e-05,2]
[418997841,1774728634305,-551.96070151,6.999e-05,2]
[418997842,1774728634315,-1241.3400319,7e-05,2]
[418997894,1774728638528,-435.42165357,7e-05,2]
[418998068,1774728641099,-1075.08886253,7e-05,2]
[418998102,1774728644001,-12115.91009098,7e-05,2]
[418998103,1774728644013,-1376.61,7e-05,2]
[418998108,1774728646506,-26665.66992011,7e-05,2]
[418998109,1774728646892,-49736.04810822,7e-05,2]
[418998110,1774728646902,-500.0,7.228e-05,2]
[418998111,1774728646911,-500.0,7.529e-05,2]
[418998112,1774728646920,-500.0,8.609e-05,2]
[418998113,1774728646930,-500.0,0.0001001,2]
[418998114,1774728646939,-500.0,0.00011557,2]
[418998115,1774728646948,-500.0,0.00011777,2]
[418998116,1774728646958,-500.0,0.00012083,2]
[418998117,1774728646968,-11262.6087569,0.00013357,2]
[418998118,1774728646978,-1000.0,0.00013699,2]
[418998119,1774728646987,-700.0,0.00013771,2]
[418998120,1774728646997,-500.0,0.00016939,2]
[418998121,1774728647007,-500.0,0.00017316,2]
[418998122,1774728647017,-500.60700505,0.00017883,2]
[418998123,1774728647028,-500.0,0.00017963,2]
[418998124,1774728647038,-952.51025888,0.00018359,2]
[418998125,1774728647048,-1027.46,0.00021,7]
[418998126,1774728647058,-163.0,0.00022,2]
[418998127,1774728647067,-184.0,0.00022427,2]
[418998128,1774728647077,-439.0,0.00022427,2]
[418998129,1774728647087,-163.0,0.00023014,7]
[418998130,1774728647097,-370.44268331,0.00023031,2]
[418998131,1774728647108,-355.56895431,0.00023357,2]
[418998132,1774728647118,-1683.0,0.00023858,10]
[418998133,1774728647127,-270.83333333,0.00024673,2]
[418998134,1774728647136,-155.994,0.00024723,7]
[418998135,1774728647146,-439.02873787,0.00024755,2]
[418998136,1774728647155,-500.0,0.00024755,2]
[418998137,1774728647165,-500.0,0.00024755,2]
[418998138,1774728647175,-500.0,0.00024755,2]
[418998139,1774728647185,-500.0,0.00024755,2]
[418998140,1774728647194,-397.54164197,0.00024755,2]
[418998142,1774728647203,-500.0,0.00024755,2]
[418998143,1774728647213,-500.0,0.00024755,2]
[418998145,1774728647222,-500.0,0.00024755,2]
[418998146,1774728647232,-500.0,0.00024755,2]
[418998147,1774728647241,-366196.50305202,0.00024756,2]
[418998149,1774728647252,-612502.82872607,0.00024756,2]
[418998151,1774728647263,-18757.92155852,0.00024756,2]
[418998156,1774728647393,-258.58443364,0.00024756,2]
[418998244,1774728841471,5000.0,5e-05,10]
[418998251,1774728863737,5000.0,5e-05,10]
[418998257,1774728885695,5000.0,5e-05,10]
[418998471,1774729823860,-2567.35328139,3.353e-05,2]
[418998489,1774729832401,-667.68346952,3.353e-05,2]
[418998490,1774729832456,-1764.96324909,3.353e-05,2]
[418998491,1774729832465,-500.0,3.387e-05,2]
[418998492,1774729832475,-500.0,3.672e-05,2]
[418998493,1774729832484,-500.0,4.702e-05,2]
[418998494,1774729832494,-500.0,6.099e-05,2]
[418998495,1774729832503,-500.0,6.828e-05,2]
[418998496,1774729832514,-500.0,7.364e-05,2]
[418998497,1774729832523,-1200.0,7.612e-05,2]
[418998498,1774729832532,-500.0,7.932e-05,2]
[418998499,1774729832541,-300.0,8.373e-05,2]
[418998500,1774729832550,-177.0,8.373e-05,2]
[418998501,1774729832561,-500.0,8.397e-05,2]
[418998502,1774729832571,-500.0,8.446e-05,2]
[418998503,1774729832580,-500.0,8.736e-05,2]
[418998504,1774729832590,-500.0,9.669e-05,2]
[418998505,1774729832599,-500.0,9.985e-05,2]
[418998506,1774729832610,-500.0,0.00010518,2]
[418998507,1774729832619,-500.0,0.00011732,2]
[418998508,1774729832630,-500.0,0.00011867,2]
[418998509,1774729832641,-500.0,0.00012977,2]
[418998510,1774729832651,-232.66074976,0.00013699,2]
[418998539,1774729838479,-767.33925024,0.00013699,2]
[418998540,1774729838489,-1000.0,0.00013699,2]
[418998541,1774729838499,-500.0,0.00013951,2]
[418998542,1774729838508,-387.580684,0.00014645,2]
[418998543,1774729838518,-500.0,0.00015128,2]
[418998544,1774729838527,-500.0,0.00015188,2]
[418998545,1774729838537,-387.580684,0.00015261,2]
[418998546,1774729838546,-387.580684,0.00015878,2]
[418998547,1774729838556,-500.0,0.00016139,2]
[418998548,1774729838565,-387.580684,0.00016494,2]
[418998549,1774729838575,-500.0,0.00016604,2]
[418998550,1774729838584,-387.580684,0.00017111,2]
[418998551,1774729838593,-387.580684,0.00017727,2]
[418998552,1774729838602,-500.0,0.00017966,2]
[418998553,1774729838612,-700.0,0.00018822,2]
[418998554,1774729838621,-500.0,0.00019749,2]
[418998555,1774729838631,-500.0,0.0002016,2]
[418998557,1774729838642,-900.0,0.00020373,2]
[418998559,1774729838652,-239.60651328,0.00020425,2]
[418998561,1774729838663,-400.0,0.00021,7]
[418998563,1774729838672,-184.0,0.00022862,2]
[418998565,1774729838682,-439.0,0.00022862,2]
[418998567,1774729838693,-270.83333333,0.00023,2]
[418998569,1774729838702,-155.994,0.000239,5]
[418998571,1774729838712,-324.8269307,0.00023942,2]
[418998573,1774729838722,-500.0,0.00024449,2]
[418998575,1774729838732,-500.0,0.00024449,2]
[418998578,1774729838743,-232.07272528,0.00024449,2]
[418998580,1774729838753,-500.0,0.00024449,2]
[418998581,1774729838762,-500.0,0.00024449,2]
[418998584,1774729838772,-500.0,0.00024449,2]
[418998586,1774729838781,-500.0,0.00024449,2]
[418998588,1774729838791,-500.0,0.00024449,2]
[418998590,1774729838800,-399.51373288,0.00024449,2]
[418998592,1774729838809,-500.0,0.00024449,2]
[418998594,1774729838820,-500.0,0.00024449,2]
[418998596,1774729838829,-500.0,0.00024449,2]
[418998598,1774729838838,-500.0,0.00024449,2]
[418998600,1774729838849,-500.0,0.00024449,2]
[418998601,1774729838858,-500.0,0.00024449,2]
[418998604,1774729838867,-500.0,0.00024449,2]
[418998606,1774729838877,-500.0,0.00024449,2]
[418998608,1774729838886,-500.0,0.00024449,2]
[418998609,1774729838896,-500.0,0.00024449,2]
[418998612,1774729838907,-500.0,0.00024449,2]
[418998613,1774729838917,-500.0,0.00024449,2]
[418998616,1774729838927,-500.0,0.00024449,2]
[418998617,1774729838936,-500.0,0.00024449,2]
[418998620,1774729838948,-500.0,0.00024449,2]
[418998622,1774729838957,-500.0,0.00024449,2]
[418998624,1774729838967,-500.0,0.00024449,2]
[418998626,1774729838977,-500.0,0.00024449,2]
[418998628,1774729838988,-500.0,0.00024449,2]
[418998630,1774729838998,-500.0,0.00024449,2]
[418998632,1774729839008,-500.0,0.00024449,2]
[418998633,1774729839017,-500.0,0.00024449,2]
[418998636,1774729839027,-500.0,0.00024449,2]
[418998638,1774729839037,-500.0,0.00024449,2]
[418998639,1774729839048,-500.0,0.00024449,2]
[418998641,1774729839058,-500.0,0.00024449,2]
[418998643,1774729839067,-500.0,0.00024449,2]
[418998646,1774729839076,-500.0,0.00024449,2]
[418998648,1774729839086,-500.0,0.00024449,2]
[418998650,1774729839097,-500.0,0.00024449,2]
[418998652,1774729839106,-500.0,0.00024449,2]
[418998653,1774729839115,-500.0,0.00024449,2]
[418998656,1774729839125,-500.0,0.00024449,2]
[418998658,1774729839134,-500.0,0.00024449,2]
[418998660,1774729839143,-500.0,0.00024449,2]
[418998662,1774729839152,-500.0,0.00024449,2]
[418998664,1774729839161,-500.0,0.00024449,2]
[418998666,1774729839171,-500.0,0.00024449,2]
[418998668,1774729839180,-500.0,0.00024449,2]
[418998670,1774729839190,-500.0,0.00024449,2]
[418998672,1774729839199,-500.0,0.00024449,2]
[418998674,1774729839208,-500.0,0.00024449,2]
[418998676,1774729839218,-500.0,0.00024449,2]
[418998678,1774729839229,-500.0,0.00024449,2]
[418998680,1774729839238,-500.0,0.00024449,2]
[418998682,1774729839247,-500.0,0.00024449,2]
[418998684,1774729839256,-500.0,0.00024449,2]
[418998686,1774729839265,-500.0,0.00024449,2]
[418998687,1774729839275,-500.0,0.00024449,2]
[418998689,1774729839284,-500.0,0.00024449,2]
[418998690,1774729839294,-500.0,0.00024449,2]
[418998692,1774729839303,-500.0,0.00024449,2]
[418998694,1774729839312,-500.0,0.00024449,2]
[418998695,1774729839321,-500.0,0.00024449,2]
[418998697,1774729839330,-500.0,0.00024449,2]
[418998699,1774729839340,-500.0,0.00024449,2]
[418998701,1774729839349,-500.0,0.00024449,2]
[418998703,1774729839358,-500.0,0.00024449,2]
[418998705,1774729839367,-500.0,0.00024449,2]
[418998707,1774729839377,-500.0,0.00024449,2]
[418998709,1774729839386,-500.0,0.00024449,2]
[418998711,1774729839395,-500.0,0.00024449,2]
[418998713,1774729839405,-500.0,0.00024449,2]
[418998715,1774729839414,-500.0,0.00024449,2]
[418998717,1774729839423,-500.0,0.00024449,2]
[418998719,1774729839432,-500.0,0.00024449,2]
[418998721,1774729839441,-500.0,0.00024449,2]
[418998723,1774729839451,-500.0,0.00024449,2]
[418998725,1774729839460,-500.0,0.00024449,2]
[418998727,1774729839469,-500.0,0.00024449,2]
[418998729,1774729839479,-500.0,0.00024449,2]
[418998731,1774729839488,-500.0,0.00024449,2]
[418998733,1774729839498,-500.0,0.00024449,2]
[418998735,1774729839507,-500.0,0.00024449,2]
[418998737,1774729839518,-630.99188522,0.00024449,2]
[418998739,1774729839527,-500.0,0.00024449,2]
[418998741,1774729839537,-235.69581078,0.00024449,2]
[418998743,1774729839546,-500.0,0.00024449,2]
[418998745,1774729839556,-500.0,0.00024449,2]
[418998747,1774729839566,-500.0,0.00024449,2]
[418998750,1774729839576,-500.0,0.00024449,2]
[418998751,1774729839585,-500.0,0.00024449,2]
[418998754,1774729839594,-500.0,0.00024449,2]
[418998756,1774729839604,-500.0,0.00024449,2]
[418998770,1774729839734,-200.0,0.00024449,2]
[418998772,1774729839745,-500.0,0.00024449,2]
[418998774,1774729839754,-500.0,0.00024449,2]
[418998776,1774729839764,-500.0,0.00024449,2]
[418998778,1774729839774,-500.0,0.00024449,2]
[418998781,1774729839786,-500.0,0.00024449,2]
[418998783,1774729839795,-500.0,0.00024449,2]
[418998784,1774729839805,-500.0,0.00024449,2]
[418998786,1774729839815,-500.0,0.00024449,2]
[418998789,1774729839824,-500.0,0.00024449,2]
[418998791,1774729839834,-500.0,0.00024449,2]
[418998793,1774729839843,-500.0,0.00024449,2]
[418998795,1774729839852,-500.0,0.00024449,2]
[418998797,1774729839861,-500.0,0.00024449,2]
[418998799,1774729839870,-500.0,0.00024449,2]
[418998801,1774729839879,-500.0,0.00024449,2]
[418998802,1774729839888,-500.0,0.00024449,2]
[418998804,1774729839898,-500.0,0.00024449,2]
[418998807,1774729839907,-500.0,0.00024449,2]
[418998809,1774729839917,-500.0,0.00024449,2]
[418998811,1774729839926,-500.0,0.00024449,2]
[418998813,1774729839935,-500.0,0.00024449,2]
[418998816,1774729839944,-500.0,0.00024449,2]
[418998818,1774729839954,-500.0,0.00024449,2]
[418998819,1774729839963,-500.0,0.00024449,2]
[418998822,1774729839973,-500.0,0.00024449,2]
[418998824,1774729839982,-500.0,0.00024449,2]
[418998826,1774729839991,-500.0,0.00024449,2]
[418998828,1774729840001,-500.0,0.00024449,2]
[418998830,1774729840011,-500.0,0.00024449,2]
[418998832,1774729840020,-500.0,0.00024449,2]
[418998834,1774729840029,-500.0,0.00024449,2]
[418998836,1774729840039,-323.86002524,0.00024449,2]
[418998838,1774729840049,-500.0,0.00024449,2]
[418998840,1774729840059,-500.0,0.00024449,2]
[418998842,1774729840068,-500.0,0.00024449,2]
[418998844,1774729840076,-500.0,0.00024449,2]
[418998846,1774729840085,-500.0,0.00024449,2]
[418998848,1774729840095,-500.0,0.00024449,2]
[418998850,1774729840104,-500.0,0.00024449,2]
[418998852,1774729840113,-650.0,0.00024449,2]
[418998854,1774729840122,-6809.37324745,0.0002445,2]
[418998856,1774729840135,-271393.13536669,0.0002445,2]
[418998858,1774729840146,-226719.36115213,0.0002445,2]
[418998861,1774729840165,-156085.26659998,0.0002445,2]
[418998863,1774729840176,-3026.59533107,0.0002445,2]
[418998964,1774729841157,-10128.5,0.0002445,2]
[418998968,1774729841191,-0.00083587,0.0002445,2]
[418999143,1774729843850,-972.6959992,0.00013562,2]
[418999144,1774729843862,-4027.3040008,0.00013562,2]
[418999145,1774729843872,-10764.59145283,0.0002445,2]
[418999146,1774729843884,-11938.61911506,0.0002445,2]
[418999147,1774729843896,-1580.71166212,0.0002445,2]
[418999148,1774729843911,-3845.15198489,0.0002445,2]
[418999149,1774729843922,-19359.82139848,0.0002445,2]
[418999162,1774729846647,-308969.16887563,0.0002445,2]
[418999163,1774729846658,-695.1387042,0.0002445,2]
[418999164,1774729846670,-42485.85783786,0.0002445,2]
[418999165,1774729846690,-408238.47581804,0.0002445,2]
[418999183,1774730246900,5000.0,5e-05,10]
[418999232,1774731034241,-5000.0,3.48e-05,2]
[418999233,1774731034251,-500.0,4.49e-05,2]
[418999234,1774731034260,-500.0,4.951e-05,2]
[418999235,1774731034271,-500.0,6.209e-05,2]
[418999236,1774731034281,-500.0,7.988e-05,2]
[418999237,1774731034290,-500.0,8.504e-05,2]
[418999238,1774731034300,-214.94914633,8.696e-05,2]
[418999239,1774731034316,-285.05085367,8.696e-05,2]
[418999240,1774731034325,-143.40564858,0.00010086,2]
[418999241,1774731034336,-324.47130679,0.00010086,2]
[418999242,1774731034348,-614.12304463,0.00010086,2]
[418999243,1774731034357,-500.0,0.00010087,2]
[418999245,1774731034366,-500.0,0.00010535,2]
[418999247,1774731034376,-500.0,0.00011393,2]
[418999249,1774731034385,-300.0,0.00011981,2]
[418999251,1774731034394,-300.0,0.00011982,2]
[418999253,1774731034404,-500.0,0.000134,2]
[418999256,1774731034413,-1000.0,0.00013699,2]
[418999257,1774731034422,-1000.0,0.00013948,2]
[418999260,1774731034433,-500.0,0.00015388,2]
[418999261,1774731034442,-700.0,0.00015624,2]
[418999263,1774731034451,-500.0,0.00017571,2]
[418999266,1774731034461,-502.93364379,0.00022,2]
[418999268,1774731034470,-270.83333333,0.00023939,2]
[418999270,1774731034479,-500.0,0.00023986,5]
[418999271,1774731034488,-500.0,0.00024146,2]
[418999273,1774731034498,-512.4509077,0.00024146,2]
[418999275,1774731034507,-500.0,0.00024146,2]
[418999277,1774731034516,-500.0,0.00024146,2]
[418999279,1774731034526,-500.0,0.00024146,2]
[418999281,1774731034536,-500.0,0.00024146,2]
[418999282,1774731034545,-420.98321431,0.00024146,2]
[418999283,1774731034554,-216.39464717,0.00024146,2]
[418999284,1774731034566,-283.60535283,0.00024146,2]
[418999285,1774731034575,-500.0,0.00024146,2]
[418999286,1774731034584,-500.0,0.00024146,2]
[418999287,1774731034594,-500.0,0.00024146,2]
[418999288,1774731034603,-500.0,0.00024146,2]
[418999289,1774731034612,-500.0,0.00024146,2]
[418999290,1774731034622,-500.0,0.00024146,2]
[418999291,1774731034631,-242.99948198,0.00024146,2]
[418999292,1774731034640,-500.0,0.00024146,2]
[418999293,1774731034650,-500.0,0.00024146,2]
[418999294,1774731034659,-500.0,0.00024146,2]
[418999295,1774731034668,-500.0,0.00024146,2]
[418999296,1774731034678,-500.0,0.00024146,2]
[418999297,1774731034687,-500.0,0.00024146,2]
[418999298,1774731034696,-500.0,0.00024146,2]
[418999299,1774731034706,-500.0,0.00024146,2]
[418999300,1774731034716,-500.0,0.00024146,2]
[418999301,1774731034725,-500.0,0.00024146,2]
[418999302,1774731034735,-460.15458233,0.00024146,2]
[418999625,1774731041454,-39.84541767,0.00024146,2]
[418999627,1774731041492,-500.0,0.00024146,2]
[418999629,1774731041502,-500.0,0.00024146,2]
[418999631,1774731041511,-500.0,0.00024146,2]
[418999633,1774731041521,-500.0,0.00024146,2]
[418999635,1774731041530,-500.0,0.00024146,2]
[418999637,1774731041540,-500.0,0.00024146,2]
[418999639,1774731041549,-500.0,0.00024146,2]
[418999642,1774731041560,-500.0,0.00024146,2]
[418999643,1774731041570,-500.0,0.00024146,2]
[418999645,1774731041579,-500.0,0.00024146,2]
[418999647,1774731041588,-500.0,0.00024146,2]
[418999648,1774731041598,-500.0,0.00024146,2]
[418999649,1774731041607,-500.0,0.00024146,2]
[418999650,1774731041617,-500.0,0.00024146,2]
[418999651,1774731041629,-500.0,0.00024146,2]
[418999652,1774731041638,-500.0,0.00024146,2]
[418999653,1774731041648,-500.0,0.00024146,2]
[418999654,1774731041658,-500.0,0.00024146,2]
[418999655,1774731041668,-500.0,0.00024146,2]
[418999656,1774731041677,-500.0,0.00024146,2]
[418999658,1774731041687,-500.0,0.00024146,2]
[418999660,1774731041695,-500.0,0.00024146,2]
[418999662,1774731041705,-500.0,0.00024146,2]
[418999664,1774731041714,-500.0,0.00024146,2]
[418999666,1774731041724,-500.0,0.00024146,2]
[418999668,1774731041733,-500.0,0.00024146,2]
[418999669,1774731041742,-500.0,0.00024146,2]
[418999671,1774731041751,-158.82697001,0.00024146,2]
[418999673,1774731041760,-500.0,0.00024146,2]
[418999675,1774731041769,-814.28011233,0.00024147,2]
[418999678,1774731041781,-701.01735427,0.00024147,2]
[418999937,1774731044309,-337.72830889,0.00024147,2]
[418999939,1774731044321,-49854.79924191,0.00024147,2]
[418999942,1774731044333,-4980.79378949,0.00024147,2]
[419000250,1774731047317,-949.77920166,0.00024047,2]
[419000259,1774731047391,-1702.55683706,0.00024047,2]
[419000261,1774731047400,-3331.26912911,0.00024147,2]
[419000265,1774731047432,-23424.47013629,0.00024147,2]
[419000270,1774731047468,-74255.75703091,0.00024147,2]
[419000272,1774731047480,-1142.3617184,0.00024147,2]
[419000335,1774731242485,5000.0,5e-05,10]
[419000411,1774732231765,-709.050005,3.1e-05,2]
[419000418,1774732231826,-296.92009493,3.1e-05,2]
[419000544,1774732238052,-3994.02990007,3.1e-05,2]
[419000546,1774732238062,-474.97169873,3.42e-05,2]
[419000548,1774732238071,-500.0,3.776e-05,2]
[419000550,1774732238080,-500.0,4.1e-05,2]
[419000552,1774732238089,-500.0,5.302e-05,2]
[419000554,1774732238100,-500.0,6.674e-05,2]
[419000555,1774732238109,-500.0,8.915e-05,2]
[419000557,1774732238118,-500.0,0.00010178,2]
[419000559,1774732238127,-500.0,0.00010623,2]
[419000561,1774732238137,-500.0,0.00012029,2]
[419000562,1774732238147,-500.0,0.00013203,2]
[419000563,1774732238157,-300.0,0.00013217,2]
[419000565,1774732238167,-500.0,0.00013219,2]
[419000566,1774732238177,-500.0,0.00013408,2]
[419000567,1774732238188,-1708.0104961,0.00013692,2]
[419000568,1774732238197,-1000.0,0.00013699,2]
[419000569,1774732238208,-5534.6239988,0.00014196,2]
[419000570,1774732238218,-500.0,0.0001445,2]
[419000571,1774732238227,-500.0,0.00014452,2]
[419000573,1774732238236,-281.0,0.00014491,2]
[419000574,1774732238247,-237.70920856,0.000147,2]
[419000575,1774732238256,-5000.0,0.00015248,2]
[419000576,1774732238266,-5000.0,0.00015248,2]
[419000577,1774732238275,-500.0,0.00015319,2]
[419000578,1774732238285,-500.0,0.00017927,2]
[419000579,1774732238295,-900.0,0.00018305,2]
[419000580,1774732238304,-168.18515446,0.00019664,2]
[419000581,1774732238314,-900.0,0.00020345,2]
[419000582,1774732238324,-184.0,0.00022763,2]
[419000583,1774732238333,-500.0,0.00022856,2]
[419000584,1774732238343,-500.0,0.00022856,2]
[419000585,1774732238352,-500.0,0.00022856,2]
[419000586,1774732238362,-500.0,0.00022975,2]
[419000587,1774732238371,-500.0,0.00022975,2]
[419000588,1774732238381,-500.0,0.00022975,2]
[419000589,1774732238392,-649.41849072,0.00023404,2]
[419000590,1774732238405,-350.58150928,0.00023404,2]
[419000591,1774732238416,-1000.0,0.00023404,2]
[419000592,1774732238426,-500.0,0.00023404,2]
[419000593,1774732238437,-1000.0,0.00023523,2]
[419000594,1774732238447,-1000.0,0.00023523,2]
[419000595,1774732238456,-501.57570192,0.00023523,2]
[419000596,1774732238466,-165.575,0.00023556,4]
[419000597,1774732238475,-2387.10243483,0.00023645,2]
[419000598,1774732238485,-300.0,0.00023687,2]
[419000599,1774732238495,-537.6845,0.00023725,2]
[419000600,1774732238505,-2150.738,0.00023725,2]
[419000601,1774732238515,-270.83333333,0.00023732,2]
[419000602,1774732238525,-500.0,0.00023743,2]
[419000603,1774732238535,-500.0,0.00023743,2]
[419000604,1774732238546,-500.0,0.00023743,2]
[419000605,1774732238556,-500.0,0.00023743,2]
[419000606,1774732238566,-526.13568097,0.00023743,2]
[419000607,1774732238576,-500.0,0.00023743,2]
[419000608,1774732238586,-500.0,0.00023743,2]
[419000609,1774732238598,-500.0,0.00023743,2]
[419000610,1774732238608,-309.69701499,0.00023743,2]
[419000611,1774732238617,-317.46905417,0.00023743,2]
[419000612,1774732238634,-182.53094583,0.00023743,2]
[419000613,1774732238644,-500.0,0.00023743,2]
[419000614,1774732238653,-500.0,0.00023743,2]
[419000615,1774732238662,-226.3896624,0.00023743,2]
[419000695,1774732243291,-436.81304454,0.00015219,2]
[419000696,1774732243301,-273.6103376,0.00023743,2]
[419000697,1774732243311,-500.0,0.00023743,2]
[419000698,1774732243321,-86.78992786,0.00023743,2]
[419000699,1774732243332,-413.21007214,0.00023743,2]
[419000700,1774732243343,-330.79647622,0.00023743,2]
[419000701,1774732243570,-169.20352378,0.00023743,2]
[419000702,1774732243581,-500.0,0.00023743,2]
[419000703,1774732243590,-415.5840408,0.00023743,2]
[419000704,1774732243602,-84.4159592,0.00023743,2]
[419000705,1774732243612,-353.5307308,0.00023743,2]
[419000714,1774732246078,-436.81304447,0.00017316,2]
[419000715,1774732246088,-146.4692692,0.00023743,2]
[419000716,1774732246098,-500.0,0.00023743,2]